[Event "9th Bangabandhu Rapid Men 2021"]
[Site "Dhaka"]
[Date "2021.04.02"]
[Round "4.1"]
[White "Islam, Khandaker Aminul"]
[Black "Hossain, Enamul"]
[Result "1/2-1/2"]
[ECO "E62"]
[WhiteElo "2210"]
[BlackElo "2404"]
[Annotator "ChessBase"]
[PlyCount "68"]
[EventDate "2021.04.02"]
[EventType "swiss"]
[EventCountry "BAN"]
[SourceTitle "playchess.com"]
[Source "ChessBase"]
[SourceQuality "1"]
[TimeControl "1500+10"]

1. Nf3 {[%emt 0:00:00]} Nf6 {[%emt 0:00:06]} 2. c4 {[%emt 0:00:01]} g6 {[%emt 0:00:31]} 3. g3 {[%emt 0:00:23]} Bg7 {[%emt 0:00:04]} 4. Bg2 {[%emt 0:00:01]} O-O {[%emt 0:00:17]} 5. O-O {[%emt 0:00:03]} d6 {[%emt 0:01:46]} 6. d4 {[%emt 0:00:02]} c6 {[%emt 0:00:01]} 7. Nc3 {[%emt 0:00:03]} Qa5 {[%emt 0:00:03]} 8. e4 {[%emt 0:00:55]} e5 {[%emt 0:00:56]} 9. dxe5 {[%emt 0:00:14]} dxe5 {[%emt 0:00:04]} 10. a3 {[%emt 0:00:10]} Bg4 {[%emt 0:00:37]} 11. b4 {[%emt 0:00:55]} Qc7 {[%emt 0:00:15]} 12. Bb2 {[%emt 0:00:21]} Rd8 {[%emt 0:00:27]} 13. Qc2 {[%emt 0:00:08]} Bxf3 {[%emt 0:00:04]} 14. Bxf3 {[%emt 0:00:01]} Nbd7 {[%emt 0:00:01]} 15. Bg2 {[%emt 0:01:00]} Nf8 {[%emt 0:00:30]} 16. Ne2 {[%emt 0:00:20]} Ne6 {[%emt 0:00:27]} 17. Rfd1 {[%emt 0:00:02]} h5 {[%emt 0:00:14]} 18. h4 {[%emt 0:00:24]} Ng4 {[%emt 0:00:13]} 19. Rxd8+ {[%emt 0:00:27]} Rxd8 {[%emt 0:00:01]} 20. Rd1 {[%emt 0:03:24]} a5 {[%emt 0:00:09]} 21. Bf3 {[%emt 0:01:02]} axb4 {[%emt 0:00:22]} 22. axb4 {[%emt 0:00:03]} Nf6 {[%emt 0:03:46]} 23. Rxd8+ {[%emt 0:00:51]} Nxd8 {[%emt 0:00:12]} 24. c5 {[%emt 0:00:29]} Ne8 {[%emt 0:00:57]} 25. Nc1 {[%emt 0:01:30]} Qe7 {[%emt 0:02:32]} 26. Nd3 {[%emt 0:03:59]} Nc7 {[%emt 0:00:29]} 27. Qd1 {[%emt 0:00:32]} f6 {[%emt 0:01:11]} 28. Be2 {[%emt 0:00:56]} Nde6 {[%emt 0:01:20]} 29. Nc1 {[%emt 0:00:23]} Qd8 {[%emt 0:12:15]} 30. Qxd8+ {[%emt 0:00:48]} Nxd8 {[%emt 0:00:00]} 31. Nb3 {[%emt 0:00:03]} Bh6 {[%emt 0:00:00]} 32. Bc4+ {[%emt 0:00:55]} Kf8 {[%emt 0:00:00]} 33. Kf1 {[%emt 0:00:07]} Ke7 {[%emt 0:00:00]} 34. Ke2 {[%emt 0:00:28]} Nce6 {[%emt 0:00:00]} 1/2-1/2

[Event "9th Bangabandhu Rapid Men 2021"]
[Site "Dhaka"]
[Date "2021.04.02"]
[Round "4.2"]
[White "Mollah Abdullah, Al Rakib"]
[Black "Mohammad Fahad, Rahman"]
[Result "1/2-1/2"]
[ECO "E01"]
[WhiteElo "2464"]
[BlackElo "2321"]
[Annotator "ChessBase"]
[PlyCount "104"]
[EventDate "2021.04.02"]
[EventType "swiss"]
[EventCountry "BAN"]
[SourceTitle "playchess.com"]
[Source "ChessBase"]
[SourceQuality "1"]
[TimeControl "1500+10"]

1. d4 {[%emt 0:00:00]} d5 {[%emt 0:00:00]} 2. c4 {[%emt 0:00:16]} c6 {[%emt 0:00:01]} 3. Nf3 {[%emt 0:00:02]} Nf6 {[%emt 0:00:02]} 4. Nbd2 {[%emt 0:00:05]} e6 {[%emt 0:01:53]} 5. g3 {[%emt 0:00:31]} Nbd7 {[%emt 0:00:09]} 6. Bg2 {[%emt 0:00:03]} Bd6 {[%emt 0:01:04]} 7. O-O {[%emt 0:00:05]} O-O {[%emt 0:00:03]} 8. b3 {[%emt 0:01:26]} e5 {[%emt 0:00:32]} 9. dxe5 {[%emt 0:00:30]} Nxe5 {[%emt 0:00:02]} 10. cxd5 {[%emt 0:00:42]} Nxd5 {[%emt 0:01:33]} 11. Bb2 {[%emt 0:00:19]} Qe7 {[%emt 0:00:53]} 12. Nxe5 {[%emt 0:02:37]} Bxe5 {[%emt 0:00:02]} 13. Bxe5 {[%emt 0:00:03]} Qxe5 {[%emt 0:00:02]} 14. Nc4 {[%emt 0:00:02]} Qg5 {[%emt 0:01:46]} 15. Qc1 {[%emt 0:01:59]} Qh5 {[%emt 0:01:13]} 16. e4 {[%emt 0:00:15]} Nf6 {[%emt 0:00:30]} 17. Qf4 {[%emt 0:00:37]} Be6 {[%emt 0:01:16]} 18. Nd6 {[%emt 0:00:59]} Rab8 {[%emt 0:01:02]} 19. Rfd1 {[%emt 0:01:05]} Bg4 {[%emt 0:02:55]} 20. Rd2 {[%emt 0:00:47]} h6 {[%emt 0:03:56]} 21. Rc1 {[%emt 0:02:06]} Be6 {[%emt 0:00:47]} 22. b4 {[%emt 0:01:21]} Nd7 {[%emt 0:01:11]} 23. a4 {[%emt 0:05:32]} a5 {[%emt 0:01:30]} 24. Bf3 {[%emt 0:01:44]} Qe5 {[%emt 0:00:15]} 25. b5 {[%emt 0:00:08]} g5 {[%emt 0:01:31]} 26. Qxe5 {[%emt 0:01:06]} Nxe5 {[%emt 0:00:03]} 27. Be2 {[%emt 0:00:01]} Bb3 {[%emt 0:00:45]} 28. Rc5 {[%emt 0:01:01]} Nd7 {[%emt 0:00:58]} 29. Rc3 {[%emt 0:00:03]} Bxa4 {[%emt 0:00:02]} 30. Nf5 {[%emt 0:00:43]} Nf6 {[%emt 0:00:10]} 31. Nxh6+ {[%emt 0:00:58]} Kh7 {[%emt 0:00:35]} 32. Rd6 {[%emt 0:01:44]} Ne8 {[%emt 0:00:27]} 33. Rd4 {[%emt 0:00:04]} Bxb5 {[%emt 0:00:14]} 34. Bxb5 {[%emt 0:00:01]} Kxh6 {[%emt 0:00:07]} 35. Bd3 {[%emt 0:00:11]} Nc7 {[%emt 0:00:24]} 36. h4 {[%emt 0:00:09]} gxh4 {[%emt 0:00:18]} 37. e5 {[%emt 0:00:18]} hxg3 {[%emt 0:00:30]} 38. Rh4+ {[%emt 0:01:20]} Kg5 {[%emt 0:00:01]} 39. Rcc4 {[%emt 0:00:01]} gxf2+ {[%emt 0:00:01]} 40. Kxf2 {[%emt 0:00:02]} f5 {[%emt 0:00:02]} 41. exf6 {[%emt 0:00:17]} Kxf6 {[%emt 0:00:02]} 42. Be4 {[%emt 0:00:28]} Rbe8 {[%emt 0:00:41]} 43. Bf3 {[%emt 0:00:09]} Ne6 {[%emt 0:00:16]} 44. Rh7 {[%emt 0:00:07]} Ng5 {[%emt 0:00:24]} 45. Rxb7 {[%emt 0:00:14]} Ke5 {[%emt 0:00:02]} 46. Rc5+ {[%emt 0:00:08]} Kf6 {[%emt 0:00:21]} 47. Rxc6+ {[%emt 0:00:31]} Re6 {[%emt 0:00:09]} 48. Rbb6 {[%emt 0:00:00]} Rxc6 {[%emt 0:00:32]} 49. Bxc6 {[%emt 0:00:00]} Kg6+ {[%emt 0:00:02]} 50. Ke3 {[%emt 0:00:00]} Rf6 {[%emt 0:00:01]} 51. Be8+ {[%emt 0:00:04]} Kg7 {[%emt 0:00:01]} 52. Rxf6 {[%emt 0:00:03]} Kxf6 {[%emt 0:00:00]} 1/2-1/2

[Event "9th Bangabandhu Rapid Men 2021"]
[Site "Dhaka"]
[Date "2021.04.02"]
[Round "4.3"]
[White "Manon, Reja Neer"]
[Black "Subrota, Biswas"]
[Result "1-0"]
[ECO "B12"]
[WhiteElo "2112"]
[BlackElo "2256"]
[Annotator "NA"]
[PlyCount "47"]
[EventDate "2021.04.02"]
[EventType "swiss"]
[EventCountry "BAN"]
[SourceTitle "playchess.com"]
[Source "ChessBase"]
[SourceQuality "1"]
[TimeControl "1500+10"]

1. e4 {[%emt 0:00:00]} c6 {[%emt 0:00:00]} 2. d4 {[%emt 0:00:00]} d5 {[%emt 0:00:00]} 3. e5 {[%emt 0:00:00]} Bf5 {[%emt 0:00:00]} 4. Nf3 {[%emt 0:00:00]} e6 {[%emt 0:00:00]} 5. Be2 {[%emt 0:00:00]} c5 {[%emt 0:00:00]} 6. c3 {[%emt 0:00:16]} Nc6 {[%emt 0:26:00]} 7. O-O {[%emt 0:00:55]} cxd4 {[%emt 0:00:00]} 8. Nxd4 {[%emt 0:01:49]} Nge7 {[%emt 0:00:20]} 9. f4 {[%emt 0:23:30]} Nxd4 {[%emt 0:00:10]} 10. cxd4 {[%emt 0:00:00]} Nc6 {[%emt 0:00:00]} 11. Be3 {[%emt 0:00:20]} Qb6 {[%emt 0:00:20]} 12. Qd2 {[%emt 0:00:10]} Bb4 {[%emt 0:00:00]} 13. Nc3 {[%emt 0:00:00]} Bxc3 {[%emt 0:00:20]} 14. bxc3 {[%emt 0:00:20]} Qa5 {[%emt 0:00:10]} 15. g4 {[%emt 0:00:10]} Be4 {[%emt 0:00:10]} 16. f5 {[%emt 0:00:10]} exf5 {[%emt 0:00:00]} 17. gxf5 {[%emt 0:00:10]} f6 {[%emt 0:00:20]} 18. Bd3 {[%emt 0:00:10]} fxe5 {[%emt 0:00:00]} 19. dxe5 {[%emt 0:00:00]} Nxe5 {[%emt 0:00:20]} 20. Bxe4 {[%emt 0:00:00]} dxe4 {[%emt 0:00:10]} 21. Qd6 {[%emt 0:00:30]} Nf3+ {[%emt 0:00:00]} 22. Rxf3 {[%emt 0:00:00]} exf3 {[%emt 0:00:00]} 23. Bc5 {[%emt 0:00:20]} f2+ {[%emt 0:00:30]} 24. Kxf2 {[%emt 0:00:10]} 1-0

[Event "9th Bangabandhu Rapid Men 2021"]
[Site "Dhaka"]
[Date "2021.04.02"]
[Round "4.4"]
[White "Rahman, Ziaur"]
[Black "Mohammad Minhaz Uddin"]
[Result "1-0"]
[ECO "E16"]
[WhiteElo "2432"]
[BlackElo "2281"]
[Annotator "ChessBase"]
[PlyCount "100"]
[EventDate "2021.04.02"]
[EventType "swiss"]
[EventCountry "BAN"]
[SourceTitle "playchess.com"]
[Source "ChessBase"]
[SourceQuality "1"]
[TimeControl "1500+10"]

1. Nf3 {[%emt 0:00:00]} Nf6 {[%emt 0:00:00]} 2. g3 {[%emt 0:00:02]} b6 {[%emt 0:00:58]} 3. Bg2 {[%emt 0:00:04]} Bb7 {[%emt 0:00:02]} 4. O-O {[%emt 0:00:02]} g6 {[%emt 0:00:53]} 5. c4 {[%emt 0:03:05]} Bg7 {[%emt 0:00:03]} 6. d4 {[%emt 0:00:10]} e6 {[%emt 0:00:05]} 7. Nc3 {[%emt 0:00:04]} d6 {[%emt 0:01:09]} 8. d5 {[%emt 0:00:23]} e5 {[%emt 0:00:15]} 9. Nd2 {[%emt 0:00:18]} O-O {[%emt 0:00:06]} 10. Rb1 {[%emt 0:00:46]} Nbd7 {[%emt 0:00:29]} 11. b4 {[%emt 0:00:09]} Ne8 {[%emt 0:01:24]} 12. Nb3 {[%emt 0:00:17]} f5 {[%emt 0:00:19]} 13. c5 {[%emt 0:01:31]} Ndf6 {[%emt 0:00:06]} 14. c6 {[%emt 0:00:16]} Bc8 {[%emt 0:00:05]} 15. e3 {[%emt 0:00:49]} Nh5 {[%emt 0:01:16]} 16. Bb2 {[%emt 0:01:39]} f4 {[%emt 0:02:06]} 17. exf4 {[%emt 0:00:02]} exf4 {[%emt 0:00:02]} 18. Re1 {[%emt 0:00:02]} Bf5 {[%emt 0:03:12]} 19. Rc1 {[%emt 0:00:02]} Qc8 {[%emt 0:01:35]} 20. Nd4 {[%emt 0:00:21]} Bh3 {[%emt 0:01:01]} 21. Ne6 {[%emt 0:00:18]} Bxg2 {[%emt 0:00:04]} 22. Kxg2 {[%emt 0:00:06]} Rf7 {[%emt 0:00:57]} 23. f3 {[%emt 0:01:40]} Be5 {[%emt 0:00:28]} 24. Rxe5 {[%emt 0:00:44]} dxe5 {[%emt 0:00:07]} 25. Ne4 {[%emt 0:00:11]} Nd6 {[%emt 0:00:47]} 26. g4 {[%emt 0:01:29]} Ng7 {[%emt 0:04:20]} 27. N4g5 {[%emt 0:00:29]} Nxe6 {[%emt 0:01:05]} 28. dxe6 {[%emt 0:00:24]} Re7 {[%emt 0:00:40]} 29. Qd5 {[%emt 0:00:21]} Ne8 {[%emt 0:01:01]} 30. Qxe5 {[%emt 0:00:23]} Ng7 {[%emt 0:00:02]} 31. Rd1 {[%emt 0:03:02]} Qf8 {[%emt 0:01:53]} 32. Rd4 {[%emt 0:00:58]} h6 {[%emt 0:00:22]} 33. Rxf4 {[%emt 0:00:39]} hxg5 {[%emt 0:00:08]} 34. Rxf8+ {[%emt 0:00:28]} Rxf8 {[%emt 0:00:03]} 35. Qxg5 {[%emt 0:00:54]} Rxe6 {[%emt 0:00:03]} 36. Qd5 {[%emt 0:00:07]} Rfe8 {[%emt 0:00:24]} 37. Be5 {[%emt 0:00:36]} R8e7 {[%emt 0:00:22]} 38. f4 {[%emt 0:00:30]} Kh7 {[%emt 0:00:11]} 39. h4 {[%emt 0:00:40]} Ne8 {[%emt 0:01:27]} 40. Qd8 {[%emt 0:01:27]} Kg8 {[%emt 0:00:37]} 41. b5 {[%emt 0:00:20]} Kf7 {[%emt 0:00:05]} 42. Qd5 {[%emt 0:00:22]} Kf8 {[%emt 0:00:37]} 43. Qd8 {[%emt 0:00:39]} Kf7 {[%emt 0:00:38]} 44. a4 {[%emt 0:01:16]} Rxe5 {[%emt 0:00:38]} 45. fxe5 {[%emt 0:00:01]} Rxe5 {[%emt 0:00:02]} 46. Kf3 {[%emt 0:00:31]} Re7 {[%emt 0:00:19]} 47. Qb8 {[%emt 0:00:51]} Nd6 {[%emt 0:00:11]} 48. Qxa7 {[%emt 0:00:30]} Ke6 {[%emt 0:00:08]} 49. Qb8 {[%emt 0:00:15]} Rf7+ {[%emt 0:00:02]} 50. Kg2 {[%emt 0:00:04]} Kf6 {[%emt 0:00:33]} 1-0

[Event "9th Bangabandhu Rapid Men 2021"]
[Site "Dhaka"]
[Date "2021.04.02"]
[Round "4.5"]
[White "Uddin, Saif"]
[Black "Rahman, Taibur"]
[Result "0-1"]
[ECO "A00"]
[WhiteElo "1894"]
[BlackElo "2189"]
[Annotator "ChessBase"]
[PlyCount "102"]
[EventDate "2021.04.02"]
[EventType "swiss"]
[EventCountry "BAN"]
[SourceTitle "playchess.com"]
[Source "ChessBase"]
[SourceQuality "1"]
[TimeControl "1500+10"]

1. Nf3 {[%emt 0:00:00]} d5 {[%emt 0:00:19]} 2. b4 {[%emt 0:00:00]} a5 {[%emt 0:00:17]} 3. b5 {[%emt 0:00:00]} c6 {[%emt 0:00:00]} 4. e3 {[%emt 0:00:06]} Nf6 {[%emt 0:00:06]} 5. a4 {[%emt 0:00:12]} Bg4 {[%emt 0:00:12]} 6. Bb2 {[%emt 0:00:20]} e6 {[%emt 0:25:06]} 7. h3 {[%emt 0:00:13]} Bh5 {[%emt 0:00:10]} 8. c4 {[%emt 0:01:22]} Nbd7 {[%emt 0:00:00]} 9. cxd5 {[%emt 0:00:40]} cxd5 {[%emt 0:00:00]} 10. g4 {[%emt 0:00:34]} Bg6 {[%emt 0:00:00]} 11. Bg2 {[%emt 0:23:23]} Bd3 {[%emt 0:00:00]} 12. Nc3 {[%emt 0:00:10]} Bb4 {[%emt 0:00:00]} 13. Ne2 {[%emt 0:00:00]} O-O {[%emt 0:00:00]} 14. Nf4 {[%emt 0:00:00]} Nc5 {[%emt 0:01:10]} 15. Bxf6 {[%emt 0:00:00]} Qxf6 {[%emt 0:00:00]} 16. Nxd3 {[%emt 0:00:00]} Nxd3+ {[%emt 0:00:00]} 17. Ke2 {[%emt 0:00:50]} Nb2 {[%emt 0:00:30]} 18. Qb3 {[%emt 0:00:10]} Nc4 {[%emt 0:00:00]} 19. d3 {[%emt 0:00:00]} Nb6 {[%emt 0:00:00]} 20. g5 {[%emt 0:00:00]} Qe7 {[%emt 0:00:00]} 21. h4 {[%emt 0:00:00]} Rac8 {[%emt 0:00:00]} 22. Rac1 {[%emt 0:00:00]} Ba3 {[%emt 0:00:00]} 23. Ra1 {[%emt 0:00:00]} Bb4 {[%emt 0:00:00]} 24. Rhc1 {[%emt 0:00:00]} Rc7 {[%emt 0:01:10]} 25. Nd4 {[%emt 0:01:10]} Rfc8 {[%emt 0:00:10]} 26. Rxc7 {[%emt 0:00:00]} Rxc7 {[%emt 0:00:10]} 27. Nc2 {[%emt 0:00:20]} Bd6 {[%emt 0:00:00]} 28. Ra2 {[%emt 0:00:10]} Be5 {[%emt 0:00:00]} 29. f4 {[%emt 0:00:10]} Bd6 {[%emt 0:00:30]} 30. Nd4 {[%emt 0:00:00]} Qd7 {[%emt 0:00:00]} 31. Rc2 {[%emt 0:00:00]} Rxc2+ {[%emt 0:00:00]} 32. Qxc2 {[%emt 0:00:00]} Qc7 {[%emt 0:00:30]} 33. Qb3 {[%emt 0:00:00]} Qc1 {[%emt 0:00:10]} 34. Nc2 {[%emt 0:00:00]} Qg1 {[%emt 0:00:10]} 35. Kf3 {[%emt 0:00:00]} Qh2 {[%emt 0:00:00]} 36. Qc3 {[%emt 0:00:00]} Qxh4 {[%emt 0:00:00]} 37. Qxa5 {[%emt 0:00:00]} Qh5+ {[%emt 0:00:00]} 38. Kf2 {[%emt 0:00:00]} Qd1 {[%emt 0:00:00]} 39. Nd4 {[%emt 0:00:40]} Bc5 {[%emt 0:00:00]} 40. Qc3 {[%emt 0:00:42]} Nxa4 {[%emt 0:00:00]} 41. Qc2 {[%emt 0:00:10]} Qxc2+ {[%emt 0:00:00]} 42. Nxc2 {[%emt 0:00:01]} Nc3 {[%emt 0:00:00]} 43. Bf1 {[%emt 0:00:06]} Nxb5 {[%emt 0:00:16]} 44. d4 {[%emt 0:00:01]} Na3 {[%emt 0:00:01]} 45. dxc5 {[%emt 0:01:00]} Nxc2 {[%emt 0:00:01]} 46. Ba6 {[%emt 0:00:10]} Nb4 {[%emt 0:00:05]} 47. Bxb7 {[%emt 0:00:00]} Nd3+ {[%emt 0:00:01]} 48. Kf3 {[%emt 0:00:00]} Nxc5 {[%emt 0:00:01]} 49. Bc6 {[%emt 0:00:00]} Kf8 {[%emt 0:00:05]} 50. f5 {[%emt 0:00:00]} Ke7 {[%emt 0:00:08]} 51. fxe6 {[%emt 0:00:00]} fxe6 {[%emt 0:02:12]} 0-1

[Event "9th Bangabandhu Rapid Men 2021"]
[Site "Dhaka"]
[Date "2021.04.02"]
[Round "4.6"]
[White "Jabed Al Azad"]
[Black "Ahmed, Sheikh Nasir"]
[Result "1-0"]
[ECO "B40"]
[WhiteElo "1983"]
[BlackElo "2176"]
[Annotator "ChessBase"]
[PlyCount "79"]
[EventDate "2021.04.02"]
[EventType "swiss"]
[EventCountry "BAN"]
[SourceTitle "playchess.com"]
[Source "ChessBase"]
[SourceQuality "1"]
[TimeControl "1500+10"]

1. e4 {[%emt 0:00:00]} c5 {[%emt 0:00:00]} 2. Nf3 {[%emt 0:00:00]} e6 {[%emt 0:00:00]} 3. d4 {[%emt 0:00:00]} cxd4 {[%emt 0:00:00]} 4. Nxd4 {[%emt 0:00:00]} Nc6 {[%emt 0:00:02]} 5. Nxc6 {[%emt 0:00:01]} bxc6 {[%emt 0:00:02]} 6. c4 {[%emt 0:00:02]} Nf6 {[%emt 0:00:19]} 7. Bd3 {[%emt 0:00:03]} Be7 {[%emt 0:01:14]} 8. O-O {[%emt 0:00:04]} d6 {[%emt 0:00:32]} 9. Nc3 {[%emt 0:00:05]} O-O {[%emt 0:00:02]} 10. Be3 {[%emt 0:03:27]} e5 {[%emt 0:00:15]} 11. Rc1 {[%emt 0:00:33]} Be6 {[%emt 0:01:02]} 12. h3 {[%emt 0:00:28]} Nd7 {[%emt 0:02:01]} 13. b4 {[%emt 0:00:26]} Nf6 {[%emt 0:03:46]} 14. a4 {[%emt 0:01:56]} d5 {[%emt 0:01:34]} 15. cxd5 {[%emt 0:00:16]} cxd5 {[%emt 0:00:02]} 16. exd5 {[%emt 0:00:03]} Nxd5 {[%emt 0:00:12]} 17. Nxd5 {[%emt 0:01:52]} Bxd5 {[%emt 0:04:05]} 18. b5 {[%emt 0:01:21]} Ba3 {[%emt 0:03:38]} 19. Bxh7+ {[%emt 0:00:26]} Kxh7 {[%emt 0:01:27]} 20. Qd3+ {[%emt 0:00:02]} f5 {[%emt 0:01:38]} 21. Qxa3 {[%emt 0:00:03]} Qf6 {[%emt 0:02:06]} 22. Bc5 {[%emt 0:00:37]} Qg6 {[%emt 0:00:40]} 23. Qg3 {[%emt 0:00:10]} Qxg3 {[%emt 0:00:02]} 24. fxg3 {[%emt 0:00:01]} Rf7 {[%emt 0:00:08]} 25. Bd6 {[%emt 0:01:13]} Re8 {[%emt 0:00:21]} 26. Rc5 {[%emt 0:00:11]} Bb3 {[%emt 0:00:21]} 27. a5 {[%emt 0:00:05]} e4 {[%emt 0:00:14]} 28. Rfxf5 {[%emt 0:01:05]} Rd7 {[%emt 0:01:05]} 29. Bf4 {[%emt 0:00:56]} e3 {[%emt 0:02:28]} 30. Rfe5 {[%emt 0:00:02]} Rde7 {[%emt 0:00:18]} 31. Rxe7 {[%emt 0:00:04]} Rxe7 {[%emt 0:00:00]} 32. Kf1 {[%emt 0:01:05]} Re4 {[%emt 0:00:16]} 33. Ke2 {[%emt 0:00:51]} Bc4+ {[%emt 0:00:14]} 34. Ke1 {[%emt 0:00:01]} e2 {[%emt 0:00:21]} 35. b6 {[%emt 0:00:35]} axb6 {[%emt 0:00:01]} 36. axb6 {[%emt 0:00:01]} Ba6 {[%emt 0:00:06]} 37. Ra5 {[%emt 0:01:00]} Bb7 {[%emt 0:00:01]} 38. Ra7 {[%emt 0:00:08]} Re7 {[%emt 0:00:02]} 39. Bc7 {[%emt 0:00:14]} Bxg2 {[%emt 0:00:11]} 40. b7 {[%emt 0:00:07]} 1-0

[Event "9th Bangabandhu Rapid Men 2021"]
[Site "Dhaka"]
[Date "2021.04.02"]
[Round "4.7"]
[White "Mehdi Hasan Parag"]
[Black "Anata, Choudhury"]
[Result "1-0"]
[ECO "B55"]
[WhiteElo "2192"]
[BlackElo "2184"]
[Annotator "ChessBase"]
[PlyCount "57"]
[EventDate "2021.04.02"]
[EventType "swiss"]
[EventCountry "BAN"]
[SourceTitle "playchess.com"]
[Source "ChessBase"]
[SourceQuality "1"]
[TimeControl "1500+10"]

1. e4 {[%emt 0:00:00]} c5 {[%emt 0:00:00]} 2. Nf3 {[%emt 0:00:00]} d6 {[%emt 0:00:00]} 3. d4 {[%emt 0:00:09]} cxd4 {[%emt 0:00:00]} 4. Nxd4 {[%emt 0:00:03]} Nf6 {[%emt 0:00:00]} 5. Be3 {[%emt 0:00:03]} Nxe4 {[%emt 0:01:22]} 6. Qf3 {[%emt 0:00:18]} Nf6 {[%emt 0:00:17]} 7. Nc3 {[%emt 0:00:13]} Nbd7 {[%emt 0:00:37]} 8. h3 {[%emt 0:00:21]} a6 {[%emt 0:00:32]} 9. g4 {[%emt 0:00:06]} g6 {[%emt 0:00:48]} 10. O-O-O {[%emt 0:00:49]} Bg7 {[%emt 0:00:07]} 11. g5 {[%emt 0:00:17]} Nh5 {[%emt 0:00:27]} 12. Be2 {[%emt 0:00:15]} Ne5 {[%emt 0:00:31]} 13. Qg2 {[%emt 0:00:10]} Bd7 {[%emt 0:02:54]} 14. f4 {[%emt 0:00:21]} Nc6 {[%emt 0:00:04]} 15. Bxh5 {[%emt 0:00:13]} gxh5 {[%emt 0:00:03]} 16. Qf3 {[%emt 0:00:16]} Rc8 {[%emt 0:00:15]} 17. Rhf1 {[%emt 0:00:39]} Na5 {[%emt 0:01:55]} 18. f5 {[%emt 0:00:25]} Be5 {[%emt 0:01:51]} 19. g6 {[%emt 0:00:29]} hxg6 {[%emt 0:02:28]} 20. fxg6 {[%emt 0:00:09]} Bf6 {[%emt 0:00:30]} 21. g7 {[%emt 0:01:29]} Rg8 {[%emt 0:00:02]} 22. Qxh5 {[%emt 0:00:09]} Bc6 {[%emt 0:05:54]} 23. Ne6 {[%emt 0:00:35]} Qd7 {[%emt 0:00:42]} 24. Qh7 {[%emt 0:00:09]} Qxe6 {[%emt 0:01:30]} 25. Qxg8+ {[%emt 0:00:04]} Kd7 {[%emt 0:00:01]} 26. Qxc8+ {[%emt 0:00:09]} Kxc8 {[%emt 0:00:02]} 27. g8=Q+ {[%emt 0:00:07]} Kc7 {[%emt 0:00:11]} 28. Rde1 {[%emt 0:03:35]} Bxc3 {[%emt 0:00:21]} 29. Bb6+ {[%emt 0:00:20]} 1-0

[Event "9th Bangabandhu Rapid Men 2021"]
[Site "Dhaka"]
[Date "2021.04.02"]
[Round "4.8"]
[White "Mohammed Abdul, Malek"]
[Black "Ghosh, Chanchal Kumer"]
[Result "0-1"]
[ECO "D32"]
[WhiteElo "2125"]
[BlackElo "2052"]
[Annotator "ChessBase"]
[PlyCount "43"]
[EventDate "2021.04.02"]
[EventType "swiss"]
[EventCountry "BAN"]
[SourceTitle "playchess.com"]
[Source "ChessBase"]
[SourceQuality "1"]
[TimeControl "1500+10"]

1. Nf3 {[%emt 0:00:15]} d5 {[%emt 0:00:00]} 2. c4 {[%emt 0:00:02]} e6 {[%emt 0:00:00]} 3. e3 {[%emt 0:00:02]} Nf6 {[%emt 0:00:00]} 4. d4 {[%emt 0:00:01]} c5 {[%emt 0:25:40]} 5. Nc3 {[%emt 0:00:03]} a6 {[%emt 0:00:00]} 6. cxd5 {[%emt 0:00:11]} exd5 {[%emt 0:00:00]} 7. dxc5 {[%emt 0:00:12]} Bxc5 {[%emt 0:00:00]} 8. Be2 {[%emt 0:00:02]} O-O {[%emt 0:00:40]} 9. a3 Nc6 {[%emt 0:00:00]} 10. O-O {[%emt 0:00:03]} Bf5 {[%emt 0:00:00]} 11. Nd4 {[%emt 0:02:50]} Bg6 {[%emt 0:00:00]} 12. b4 {[%emt 0:00:11]} Ba7 {[%emt 0:00:00]} 13. Bb2 {[%emt 0:00:06]} Rc8 {[%emt 0:00:00]} 14. Rc1 {[%emt 0:00:01]} Ne5 {[%emt 0:00:00]} 15. f4 {[%emt 0:00:40]} Nc4 {[%emt 0:00:00]} 16. Bxc4 {[%emt 0:02:45]} Rxc4 {[%emt 0:00:00]} 17. f5 {[%emt 0:01:15]} Bh5 {[%emt 0:00:00]} 18. Qd3 {[%emt 0:00:07]} Ng4 {[%emt 0:00:00]} 19. h3 {[%emt 0:00:54]} Nxe3 {[%emt 0:00:00]} 20. Rf4 {[%emt 0:01:22]} Qg5 {[%emt 0:00:00]} 21. Qxe3 {[%emt 0:07:29]} Bxd4 {[%emt 0:00:00]} 22. Qxd4 {[%emt 0:10:09]} 0-1